bitfinex-derivatives/quotes_SOLF0:USTF0_20250404
["timestamp","ask_amount","ask_price","bid_price","bid_amount"]
[1743752510584,0.06279867,117.48,117.47,9.6172184]
[1743752512284,0.06279867,117.48,117.47,18.1323184]
[1743752515088,0.06279867,117.48,117.46,18.1328184]
[1743752515586,0.06279867,117.48,117.47,18.1323184]
[1743752515986,35.6913,117.53,117.47,9.6172184]
[1743752516190,35.6913,117.53,117.5,9.6172184]
[1743752516487,35.6913,117.53,117.5,18.1299184]
[1743752517090,8.5119,117.52,117.5,18.1299184]
[1743752517290,8.5119,117.52,117.5,8.57549867]
[1743752517591,44.26045871,117.53,117.5,18.19271707]
[1743752517989,41.99655871,117.53,117.5,18.19271707]
[1743752518190,39.78915871,117.53,117.5,18.19271707]
[1743752518392,8.5116,117.52,117.5,18.19271707]
[1743752518587,8.5116,117.52,117.5,8.57549867]
[1743752519186,8.5122,117.51,117.5,0.06279867]
[1743752520693,18.1294184,117.51,117.5,0.06279867]
[1743752523497,31.2737184,117.51,117.5,9.867e-05]
[1743752525299,22.7537184,117.51,117.5,9.867e-05]
[1743752525791,56.36135415,117.51,117.5,9.867e-05]
[1743752525997,64.88135415,117.51,117.5,9.867e-05]
[1743752527697,8.5161,117.46,117.43,9.6172184]
[1743752528093,31.22,117.47,117.45,8.5166]
[1743752528294,39.7355,117.47,117.45,8.5166]
[1743752528700,31.22,117.47,117.46,8.5159]
[1743752529003,0.05878561,117.47,117.46,8.5159]
[1743752529605,0.05878561,117.47,117.46,18.1331184]
[1743752534709,31.22,117.51,117.5,8.513]
[1743752534910,39.7313,117.53,117.5,18.1302184]
[1743752535708,0.0627374,117.53,117.51,18.1292184]
[1743752537011,0.0627374,117.53,117.52,18.1287184]
[1743752537714,0.0627374,117.53,117.52,8.5115]
[1743752538211,0.0627374,117.53,117.51,8.5118]
[1743752538722,0.0627374,117.53,117.5,15.06872518]
[1743752539414,0.0627374,117.53,117.5,0.05878561]
[1743752539716,0.0627374,117.53,117.5,8.57138561]
[1743752539909,0.0627374,117.53,117.5,0.05878561]
[1743752540515,8.5122,117.51,117.5,0.05878561]
[1743752541015,0.0627374,117.53,117.5,0.05878561]
[1743752541718,8.5738374,117.53,117.5,8.57138561]
[1743752542216,0.0627374,117.53,117.5,0.05878561]
[1743752542816,0.0627374,117.53,117.5,15.06872518]
[1743752543017,0.0627374,117.53,117.52,8.5115]
[1743752543316,11.82958281,117.56,117.52,15.00993957]
[1743752543511,11.82958281,117.56,117.55,8.5094]
[1743752544311,43.02958281,117.59,117.55,8.5094]
[1743752544516,0.05520078,117.57,117.54,15.06399465]
[1743752544715,0.05520078,117.57,117.54,17.28629465]
[1743752545417,0.05520078,117.57,117.56,15.00993957]
[1743752545618,0.05520078,117.57,117.54,0.05405508]
[1743752546118,0.05520078,117.57,117.55,8.5093]
[1743752546616,0.05520078,117.57,117.55,15.00993957]
[1743752547116,0.05520078,117.57,117.56,8.5086]
[1743752547319,4.5708,117.62,117.55,21.87323957]
[1743752547616,4.5708,117.62,117.57,15.00993957]
[1743752547819,537.40176836,117.65,117.59,15.00993957]
[1743752548112,47.32176836,117.65,117.61,15.00993957]
[1743752548318,47.32176836,117.65,117.63,8.5032]
[1743752548518,0.05522964,117.64,117.63,8.5032]
[1743752550920,0.05522964,117.64,117.62,8.56025119]
[1743752551313,0.05522964,117.64,117.62,0.05625119]
[1743752551715,0.05522964,117.64,117.63,8.5036]
[1743752552219,0.05522964,117.64,117.63,23.51353957]
[1743752552417,31.2,117.68,117.65,8.5021]
[1743752552920,39.7001,117.68,117.64,8.5025]
[1743752553216,6.9514,117.7,117.63,15.00993957]
[1743752553420,8.5,117.68,117.63,15.00993957]
[1743752553616,0.06545844,117.68,117.65,0.05753183]
[1743752554218,8.5012,117.67,117.65,0.05753183]
[1743752554826,8.5014,117.66,117.65,0.05753183]
[1743752555011,39.6814,117.66,117.65,0.05753183]
[1743752556022,8.5037,117.63,117.59,15.00993957]
[1743752556223,46.18993957,117.66,117.59,15.00993957]
[1743752556420,31.18,117.66,117.59,15.00993957]
[1743752556722,31.18,117.66,117.61,15.00993957]
[1743752557119,0.06044427,117.65,117.63,8.5033]
[1743752557311,0.06044427,117.65,117.62,0.05822104]
[1743752558317,8.56304427,117.65,117.62,0.05822104]
[1743752558621,0.06044427,117.65,117.62,0.05822104]
[1743752558914,8.5036,117.64,117.62,0.05822104]
[1743752559322,8.5036,117.63,117.62,0.05822104]
[1743752559923,8.5031,117.64,117.62,0.05822104]
[1743752561114,31.24044427,117.65,117.62,0.05822104]
[1743752561520,0.06044427,117.65,117.62,0.05822104]
[1743752561719,0.06044427,117.65,117.64,8.5028]
[1743752563122,0.06044427,117.65,117.63,15.00993957]
[1743752563317,0.06044427,117.65,117.62,0.05822104]
[1743752563723,0.06044427,117.65,117.63,8.5031]
[1743752564021,0.06044427,117.65,117.62,0.05822104]
[1743752564222,0.06044427,117.65,117.63,15.00993957]
[1743752564422,0.06044427,117.65,117.64,8.5028]
[1743752567326,0.06044427,117.65,117.63,8.5032]
[1743752567524,8.56304427,117.65,117.62,0.05822104]
[1743752567715,0.06044427,117.65,117.62,0.05822104]
[1743752568727,0.06044427,117.65,117.62,8.56212104]
[1743752569028,0.06044427,117.65,117.62,0.05822104]
[1743752569222,31.22044427,117.65,117.62,0.05822104]
[1743752570725,31.22044427,117.65,117.63,8.5036]
[1743752571325,0.06044427,117.65,117.63,8.5036]
[1743752571727,8.56274427,117.65,117.62,8.56212104]
[1743752573430,8.56274427,117.65,117.63,8.5034]
[1743752573823,8.56274427,117.65,117.62,0.05822104]
[1743752574028,8.503,117.64,117.62,8.56212104]
[1743752574431,0.06044427,117.65,117.62,8.56212104]
[1743752574632,8.56304427,117.65,117.62,8.56212104]
[1743752574826,0.06044427,117.65,117.62,0.05822104]
[1743752575627,8.5031,117.64,117.62,8.56212104]
[1743752576233,8.56304427,117.65,117.63,8.5034]
[1743752577532,8.56304427,117.65,117.62,8.56202104]
[1743752577736,8.56304427,117.65,117.62,0.05822104]
[1743752579834,8.56304427,117.65,117.62,8.56192104]
[1743752580634,8.56304427,117.65,117.63,8.5035]
[1743752580836,8.56304427,117.65,117.62,0.05822104]
[1743752581030,0.06044427,117.65,117.62,0.05822104]
[1743752581237,0.06044427,117.65,117.63,8.5033]
[1743752581735,0.06044427,117.65,117.64,8.5028]
[1743752587534,47.32176836,117.69,117.63,46.16993957]
[1743752587739,47.32176836,117.69,117.67,15.00993957]
[1743752588541,47.38108191,117.69,117.68,8.5]
[1743752588842,47.38108191,117.69,117.67,15.06966353]
[1743752589238,47.38108191,117.69,117.68,8.5]
[1743752589746,0.05931355,117.69,117.68,8.5]
[1743752590945,0.05931355,117.69,117.67,15.06966353]
[1743752590946,0.05931355,117.69,117.67,23.56996353]
[1743752592350,0.05931355,117.69,117.68,8.5]
[1743752593155,0.05931355,117.69,117.67,23.56986353]
[1743752593456,0.05931355,117.69,117.67,15.06966353]
[1743752593954,0.05931355,117.69,117.68,8.5]
[1743752594355,0.05931355,117.69,117.67,23.57006353]
[1743752595252,0.05931355,117.69,117.68,8.5]
[1743752595454,47.32176836,117.72,117.67,46.22966353]
[1743752595650,47.32176836,117.72,117.71,9.57493886]
[1743752596052,8.4966,117.73,117.71,9.57493886]
[1743752596254,96.39831372,117.74,117.69,9.57493886]
[1743752596457,8.4979,117.71,117.68,18.07463886]
[1743752596655,8.4979,117.71,117.7,0.06212945]
[1743752596953,40.79238379,117.73,117.7,0.06212945]
[1743752597151,39.71434493,117.73,117.7,0.06212945]
[1743752597355,31.21744493,117.73,117.7,0.06212945]
[1743752597558,0.05744493,117.73,117.7,8.56052945]
[1743752597856,39.71424493,117.73,117.7,8.56052945]
[1743752599254,8.4971,117.72,117.7,8.56052945]
[1743752599460,31.21744493,117.73,117.7,0.06212945]
[1743752599461,40.79238379,117.73,117.7,0.06212945]
[1743752599954,8.4971,117.72,117.7,0.06212945]
[1743752600258,40.79238379,117.73,117.7,0.06212945]
[1743752601767,8.4977,117.72,117.7,0.06212945]
[1743752602162,40.79238379,117.73,117.7,0.06212945]
[1743752602562,8.4976,117.72,117.7,0.06212945]
[1743752602864,40.79238379,117.73,117.7,0.06212945]
[1743752603058,9.57493886,117.72,117.7,0.06212945]
[1743752603362,8.4978,117.71,117.7,0.06212945]
[1743752607466,8.4999,117.69,117.64,38.1213]
[1743752607667,8.4999,117.69,117.66,9.57493886]
[1743752607863,31.14,117.7,117.66,18.07603886]
[1743752608165,8.5,117.68,117.66,18.07603886]
[1743752608665,8.56295199,117.68,117.66,18.13084579]
[1743752609670,40.71493886,117.67,117.56,1.47886875]
[1743752609961,9.57493886,117.61,117.56,9.57493886]
[1743752610166,9.57493886,117.6,117.55,9.57493886]
[1743752610867,9.57493886,117.6,117.54,15.2068]
[1743752610868,0.05722946,117.59,117.56,9.63314201]
[1743752611167,8.5072,117.58,117.56,9.63314201]
[1743752611665,8.5072,117.58,117.56,0.05820315]
[1743752612665,0.05722946,117.59,117.56,0.05820315]
[1743752613170,31.16,117.58,117.56,0.05820315]
[1743752613472,8.5079,117.57,117.56,0.05820315]
[1743752618570,23.50723948,117.57,117.56,0.00236556]
[1743752618775,8.5079,117.57,117.56,0.00236556]
[1743752621075,23.49933948,117.57,117.5,8.5126]
[1743752621280,14.99933948,117.55,117.5,8.5126]
[1743752621475,31.18,117.54,117.48,14.99933948]
[1743752622078,31.18,117.54,117.52,8.5112]
[1743752622578,31.24280856,117.54,117.52,8.5112]
[1743752624783,31.24280856,117.54,117.53,8.5108]
[1743752625476,0.06280856,117.54,117.53,8.5108]
[1743752628078,0.06280856,117.54,117.52,8.5112]
[1743752628582,0.06280856,117.54,117.53,8.5108]
[1743752628881,0.06280856,117.54,117.5,35.88602832]
[1743752629581,8.57330856,117.54,117.51,8.5117]
[1743752629776,8.57330856,117.54,117.5,35.88602832]
[1743752629978,0.06280856,117.54,117.5,4.70602832]
[1743752630182,0.06280856,117.54,117.52,8.5108]
[1743752630387,0.06280856,117.54,117.5,4.70602832]
[1743752630882,0.06280856,117.54,117.53,8.5108]
[1743752631282,0.06280856,117.54,117.5,2.42762832]
[1743752631480,8.5109,117.53,117.51,8.512]
[1743752632176,31.24280856,117.54,117.5,2.42762832]
[1743752632381,8.5119,117.52,117.5,0.05872832]
[1743752632782,8.5119,117.52,117.5,8.57162832]
[1743752633283,8.5112,117.53,117.5,8.57162832]
[1743752633484,8.5112,117.53,117.51,8.5121]
[1743752633683,8.5112,117.53,117.5,0.05872832]
[1743752633884,8.5115,117.52,117.5,0.05872832]
[1743752634084,8.5115,117.52,117.5,8.57132832]
[1743752634484,8.5122,117.51,117.5,0.05872832]
[1743752634784,39.6922,117.51,117.5,0.05872832]
[1743752636587,31.18,117.51,117.5,0.05872832]
[1743752637488,31.18,117.51,117.5,8.57172832]
[1743752639589,31.18,117.51,117.5,0.05872832]
[1743752639992,39.6922,117.51,117.5,0.05872832]
[1743752640189,31.18,117.51,117.5,0.05872832]
[1743752640387,31.18,117.53,117.5,0.05872832]
[1743752641187,0.06280856,117.54,117.5,0.05872832]
[1743752641397,0.06280856,117.54,117.53,8.5108]
[1743752642895,0.06280856,117.54,117.52,8.5112]
[1743752643393,0.06280856,117.54,117.51,4.5352]
[1743752643595,0.06280856,117.54,117.53,8.5108]
[1743752643996,31.18,117.58,117.55,8.509]
[1743752644197,31.18,117.58,117.52,14.99933948]
[1743752644498,31.18,117.58,117.55,8.5092]
[1743752644993,39.74619818,117.58,117.55,8.5092]
[1743752645198,39.74619818,117.58,117.55,8.57348788]
[1743752646499,39.74619818,117.58,117.56,8.5086]
[1743752646799,31.23859818,117.58,117.55,0.06428788]
[1743752647395,31.23859818,117.58,117.57,8.5079]
[1743752647999,125.81414921,117.58,117.57,8.5079]
[1743752648302,94.63414921,117.58,117.57,8.5079]
[1743752650200,44.48521236,117.58,117.57,8.5079]
[1743752650905,44.48521236,117.58,117.56,8.5082]
[1743752651105,52.99271236,117.58,117.55,0.06428788]
[1743752651499,52.99271236,117.58,117.55,8.57308788]
[1743752651710,8.5079,117.57,117.55,0.06428788]
[1743752651896,44.48521236,117.58,117.55,0.06428788]
[1743752652100,44.48521236,117.58,117.55,8.57318788]
[1743752652405,8.56619818,117.58,117.55,0.06428788]
[1743752652909,0.05859818,117.58,117.56,8.5083]
[1743752653707,0.05859818,117.58,117.57,8.5079]
[1743752655507,0.05859818,117.58,117.56,8.508]
[1743752655910,8.56609818,117.58,117.56,8.508]
[1743752656612,0.05859818,117.58,117.55,0.06428788]
[1743752657204,0.05859818,117.58,117.57,8.5079]
[1743752660912,8.56579818,117.58,117.56,10.6763]
[1743752661310,0.05859818,117.58,117.57,8.5079]
[1743752662110,0.05859818,117.58,117.56,10.6763]
[1743752662817,0.05859818,117.58,117.57,8.5079]
[1743752667419,470.23254257,117.63,117.57,14.99933948]
[1743752667614,31.16,117.62,117.57,14.99933948]
[1743752667815,469.05076011,117.63,117.59,9.59461754]
[1743752668015,490.61614257,117.63,117.59,9.59461754]
[1743752668211,490.61614257,117.63,117.61,8.5046]
[1743752668415,31.16,117.63,117.61,8.5046]
[1743752668616,31.21636303,117.63,117.61,8.56342149]
[1743752669418,0.05636303,117.63,117.61,8.56342149]
[1743752670014,0.05636303,117.63,117.62,8.5043]
[1743752670218,8.55996303,117.63,117.61,0.05882149]
[1743752670420,0.05636303,117.63,117.61,8.56322149]
[1743752670722,0.05636303,117.63,117.61,0.05882149]
[1743752671222,0.05636303,117.63,117.61,8.56322149]
[1743752671422,0.05636303,117.63,117.61,0.05882149]
[1743752671718,0.05636303,117.63,117.61,8.56342149]
[1743752672016,8.55996303,117.63,117.61,8.56342149]
[1743752672220,0.05636303,117.63,117.61,9.65343903]
[1743752672423,0.05636303,117.63,117.62,18.09891754]
[1743752673822,8.5011,117.67,117.64,8.5028]
[1743752674026,39.6611,117.67,117.64,8.5028]
[1743752674220,8.5011,117.67,117.64,8.5028]
[1743752674421,8.5015,117.66,117.64,8.5028]
[1743752674827,31.16,117.67,117.64,8.5028]
[1743752675025,0.05436665,117.66,117.64,0.05627977]
[1743752675526,9.64898419,117.66,117.64,0.05627977]
[1743752675730,8.5021,117.65,117.64,0.05627977]
[1743752676628,8.5043,117.62,117.58,14.98480252]
[1743752676927,31.16,117.64,117.6,8.5054]
[1743752677829,0.05852944,117.63,117.61,0.05432439]
[1743752678622,0.05852944,117.63,117.62,8.5042]
[1743752679327,0.05852944,117.63,117.61,8.55892439]
[1743752679528,0.05852944,117.63,117.61,0.05432439]
[1743752679727,8.56252944,117.63,117.61,0.05432439]
[1743752680326,8.5043,117.62,117.61,0.05432439]
[1743752681029,8.56252944,117.63,117.61,8.55932439]
[1743752681227,0.05852944,117.63,117.61,8.55932439]
[1743752681430,0.05852944,117.63,117.61,0.05432439]
[1743752681625,8.56232944,117.63,117.61,8.55892439]
[1743752683331,0.05852944,117.63,117.62,8.5043]
[1743752683830,0.05852944,117.63,117.61,8.55892439]
[1743752684333,8.5043,117.62,117.61,0.05432439]
[1743752691337,10.81062944,117.63,117.61,0.05432439]
[1743752691842,10.81062944,117.63,117.61,8.55892439]
[1743752692230,8.5043,117.62,117.61,0.05432439]
[1743752695639,18.10123014,117.62,117.61,0.05432439]
[1743752696136,39.70232944,117.63,117.61,0.05432439]
[1743752696638,39.70232944,117.63,117.61,8.55902439]
[1743752697034,8.5043,117.62,117.61,0.05432439]
[1743752698638,8.5043,117.62,117.61,8.55932439]
[1743752698938,39.70252944,117.63,117.61,8.55932439]
[1743752699141,31.19852944,117.63,117.61,0.05432439]
[1743752699742,8.5043,117.62,117.61,0.05432439]
[1743752699943,0.05852944,117.63,117.61,9.65125453]
[1743752700242,11.80785362,117.65,117.64,8.5028]
[1743752700432,84.63064402,117.67,117.64,9.59693014]
[1743752700635,290.28924325,117.69,117.67,8.5007]
[1743752700838,41.1675113,117.68,117.67,18.09763014]
[1743752701040,57.1966492,117.7,117.67,18.09693014]
[1743752701239,93.69428663,117.71,117.7,8.4985]
[1743752701543,93.69428663,117.71,117.7,9.59693014]
[1743752701744,93.69428663,117.71,117.7,8.4985]
[1743752702045,93.69428663,117.71,117.69,15.02221867]
[1743752702345,93.69428663,117.71,117.69,0.0616948]
[1743752702642,0.05879023,117.72,117.69,0.0616948]
[1743752702836,8.4983,117.71,117.69,0.0616948]
[1743752704841,0.05879023,117.72,117.69,0.0616948]
[1743752705746,8.4982,117.71,117.69,0.0616948]
[1743752705944,0.05879023,117.72,117.69,0.0616948]
[1743752706140,4.50859023,117.72,117.69,0.0616948]
[1743752706337,8.4985,117.7,117.69,0.0616948]
[1743752706544,39.6385,117.7,117.69,0.0616948]
[1743752706938,4.50859023,117.72,117.69,0.0616948]
[1743752707249,0.05879023,117.72,117.71,14.96052387]
[1743752707544,0.05879023,117.72,117.71,23.45832387]
[1743752708247,8.4935,117.77,117.71,54.60052387]
[1743752708544,31.12,117.8,117.73,14.96052387]
[1743752708843,8.4935,117.77,117.73,14.96052387]
[1743752709243,0.06010947,117.76,117.74,0.05855946]
[1743752709437,8.55430947,117.76,117.74,0.05855946]
[1743752709945,0.06010947,117.76,117.74,0.05855946]
[1743752710146,8.55470947,117.76,117.74,0.05855946]
[1743752710444,0.06010947,117.76,117.74,0.05855946]
[1743752711350,8.4949,117.75,117.74,0.05855946]
[1743752711547,0.06010947,117.76,117.74,0.05855946]
[1743752712846,0.06010947,117.76,117.74,8.55395946]
[1743752713746,0.06010947,117.76,117.74,0.05855946]
[1743752714448,0.06010947,117.76,117.74,8.55415946]
[1743752715652,46.08052387,117.8,117.74,8.55415946]
[1743752715846,46.08052387,117.8,117.75,8.4948]
[1743752716252,8.4932,117.78,117.75,8.4948]
[1743752716748,46.08052387,117.8,117.75,8.4948]
[1743752716954,0.06352001,117.78,117.75,8.4948]
[1743752717752,8.55662001,117.78,117.77,62.0]
[1743752720553,8.4949,117.75,117.74,0.05855946]
[1743752720755,31.1,117.77,117.74,0.05855946]
[1743752721150,8.4949,117.75,117.74,0.05855946]
[1743752721951,0.06352001,117.78,117.74,0.05855946]
[1743752722150,0.06352001,117.78,117.75,8.4944]
[1743752722351,0.06352001,117.78,117.74,0.05855946]
[1743752722551,8.55662001,117.78,117.75,8.4944]
[1743752724454,0.06352001,117.78,117.74,0.05855946]
[1743752725657,31.1,117.81,117.75,14.96052387]
[1743752725856,39.5909,117.81,117.79,8.492]
[1743752726156,31.1,117.81,117.75,46.06052387]
[1743752726455,17.32862387,117.83,117.75,31.1]
[1743752726758,0.06057851,117.8,117.79,8.492]
[1743752727052,8.4882,117.85,117.79,31.1]
[1743752727260,0.06070847,117.81,117.79,31.1]
[1743752727551,8.4884,117.84,117.81,8.4901]
[1743752727754,46.06052387,117.86,117.79,0.06066256]
[1743752727958,8.4906,117.81,117.79,0.06066256]
[1743752728258,31.1,117.82,117.79,0.06066256]
[1743752728454,0.05875092,117.81,117.79,0.06066256]
[1743752728657,0.05875092,117.81,117.79,8.55246256]
[1743752728857,0.05875092,117.81,117.79,0.06066256]
[1743752729058,8.54965092,117.81,117.79,0.06066256]
[1743752731556,0.05875092,117.81,117.79,8.55256256]
[1743752731860,0.05875092,117.81,117.79,0.06066256]
[1743752732061,8.54965092,117.81,117.79,0.06066256]
[1743752732461,0.05875092,117.81,117.79,0.06066256]
[1743752733464,8.54985092,117.81,117.79,0.06066256]
[1743752734764,0.05875092,117.81,117.79,0.06066256]
[1743752734966,0.05875092,117.81,117.8,8.4913]
[1743752735169,0.05875092,117.81,117.79,0.06066256]
[1743752736469,0.05875092,117.81,117.79,8.55256256]
[1743752736860,0.05875092,117.81,117.79,0.06066256]
[1743752737064,8.54985092,117.81,117.79,8.55266256]
[1743752737970,8.54985092,117.81,117.79,0.06066256]
[1743752738271,8.4913,117.8,117.79,0.06066256]
[1743752738572,0.05875092,117.81,117.79,0.06066256]
[1743752739172,0.05875092,117.81,117.73,504.04052387]
[1743752739173,15.01927479,117.81,117.69,714.29572708]
[1743752739368,8.4946,117.76,117.74,8.4955]
[1743752739566,39.5746,117.76,117.74,8.4955]
[1743752740274,31.08,117.76,117.75,8.4949]
[1743752740572,0.06153936,117.76,117.75,8.4949]
[1743752741480,0.06153936,117.76,117.75,23.45542387]
[1743752746081,0.06153936,117.76,117.74,8.54982397]
[1743752746484,0.06153936,117.76,117.74,0.05462397]
[1743752746883,8.55583936,117.76,117.74,8.54992397]
[1743752747083,0.06153936,117.76,117.74,8.54992397]
[1743752747283,0.06153936,117.76,117.74,0.05462397]
[1743752747584,8.55573936,117.76,117.74,8.54982397]
[1743752749483,8.55573936,117.76,117.74,0.05462397]
[1743752749681,8.4949,117.75,117.74,0.05462397]
[1743752751582,8.4963,117.74,117.71,356.25785095]
[1743752751885,8.4963,117.74,117.71,341.29732708]
[1743752752084,8.4963,117.74,117.71,349.79482708]
[1743752752486,39.5963,117.74,117.71,349.79482708]
[1743752752684,8.4967,117.73,117.71,341.29732708]
[1743752752890,8.4967,117.73,117.71,341.3592311]
[1743752753082,8.55914162,117.73,117.71,341.3592311]
[1743752753283,8.55914162,117.73,117.71,349.8567311]
[1743752753987,8.55914162,117.73,117.71,8.55940402]
[1743752754388,0.06244162,117.73,117.72,8.4971]
[1743752755585,8.4971,117.72,117.71,0.06190402]
[1743752756386,0.06244162,117.73,117.71,0.06190402]
[1743752757090,8.4971,117.72,117.71,0.06190402]
[1743752759488,0.06244162,117.73,117.71,0.06190402]
[1743752759988,0.06244162,117.73,117.71,8.55940402]
[1743752760287,0.06244162,117.73,117.71,0.06190402]
[1743752760481,8.55914162,117.73,117.71,0.06190402]
[1743752760988,0.06244162,117.73,117.71,8.55930402]
[1743752761195,31.16244162,117.73,117.71,8.55930402]
[1743752761388,0.06244162,117.73,117.71,15.02242789]
[1743752761690,0.06244162,117.73,117.72,8.4971]
[1743752761880,16.9773,117.84,117.72,31.1]
[1743752762078,8.4924,117.79,117.76,8.4937]
[1743752762494,8.4927,117.79,117.76,8.4937]
[1743752762785,2.3224,117.8,117.74,14.96052387]
[1743752762989,0.05454645,117.79,117.76,15.01585895]
[1743752763390,0.05454645,117.79,117.78,8.4923]
[1743752765090,0.05454645,117.79,117.78,23.45282387]
[1743752768394,31.08,117.84,117.78,46.04052387]
[1743752768692,4.2917,117.85,117.78,46.04052387]
[1743752768991,4.2917,117.85,117.82,8.4895]
[1743752769488,12.83384467,117.85,117.82,8.55488247]
[1743752769693,4.34584467,117.85,117.83,8.4891]
[1743752770194,2.20364467,117.85,117.83,8.4891]
[1743752770389,2.20364467,117.85,117.82,0.06538247]
[1743752770586,0.05414467,117.85,117.82,0.06538247]
[1743752770786,0.05414467,117.85,117.82,15.02590634]
[1743752771189,0.05414467,117.85,117.83,124.0]
[1743752771396,0.05414467,117.85,117.84,8.4884]
[1743752771896,0.05414467,117.85,117.83,124.0]
[1743752772696,0.05414467,117.85,117.83,132.4888]
[1743752772897,0.05414467,117.85,117.82,15.02590634]
[1743752773097,0.05414467,117.85,117.82,0.06538247]
[1743752773897,0.05414467,117.85,117.83,8.489]
[1743752774195,8.54204467,117.85,117.82,0.06538247]
[1743752774396,8.54204467,117.85,117.82,8.55468247]
[1743752776097,0.05414467,117.85,117.82,0.06538247]
[1743752776304,31.08,117.84,117.78,14.96052387]
[1743752776504,2.2129,117.83,117.78,14.96052387]
[1743752776698,8.4909,117.81,117.78,23.45282387]
[1743752777104,8.4902,117.82,117.79,8.4919]
[1743752777303,2.2129,117.83,117.8,14.96052387]
[1743752777503,0.06456966,117.82,117.8,14.96052387]
[1743752777901,0.06456966,117.82,117.81,8.4903]
[1743752778103,0.06456966,117.82,117.8,14.96052387]
[1743752778306,0.06456966,117.82,117.79,0.05848935]
[1743752779005,0.06456966,117.82,117.8,14.96052387]
[1743752779400,0.06456966,117.82,117.8,46.04052387]
[1743752779602,0.06456966,117.82,117.79,0.05848935]
[1743752780605,0.06456966,117.82,117.79,15.01901322]
[1743752780807,0.06456966,117.82,117.81,14.96052387]
[1743752781003,0.06456966,117.82,117.81,46.04052387]
[1743752781307,0.06456966,117.82,117.81,54.53112387]
[1743752781709,4.6083,117.88,117.81,46.04052387]
[1743752781901,2.2816,117.88,117.83,14.96052387]
[1743752782303,4.82048968,117.9,117.84,31.08]
[1743752782503,4.82048968,117.9,117.86,14.96052387]
[1743752782697,8.4852,117.89,117.86,14.96052387]
[1743752782902,8.53892241,117.89,117.87,0.05687324]
[1743752783200,0.05372241,117.89,117.87,0.05687324]
[1743752784008,0.05372241,117.89,117.87,8.54277324]
[1743752784907,8.53872241,117.89,117.87,0.05687324]
[1743752785110,0.05372241,117.89,117.87,0.05687324]
[1743752785407,8.4855,117.88,117.87,0.05687324]
[1743752786109,8.487,117.86,117.83,8.4886]
[1743752786310,31.37372241,117.89,117.82,14.96052387]
[1743752786608,8.4859,117.88,117.85,8.4876]
[1743752786903,31.32,117.89,117.86,8.4863]
[1743752787105,39.8051,117.89,117.86,8.4863]
[1743752787308,39.86331876,117.89,117.86,8.54493257]
[1743752787808,8.4856,117.88,117.86,8.54493257]
[1743752788009,8.4856,117.88,117.86,0.05863257]
[1743752788313,39.86341876,117.89,117.86,0.05863257]
[1743752788603,0.05821876,117.89,117.86,8.54523257]
[1743752788808,8.4856,117.88,117.86,0.05863257]
[1743752789006,8.4856,117.88,117.86,8.54553257]
[1743752789205,0.05821876,117.89,117.86,0.05863257]
[1743752789410,8.54331876,117.89,117.86,0.05863257]
[1743752789610,8.54331876,117.89,117.86,8.54523257]
[1743752790112,8.54331876,117.89,117.87,8.4862]
[1743752791011,0.05821876,117.89,117.88,8.4855]
[1743752791212,0.05821876,117.89,117.86,0.05863257]
[1743752791513,0.05821876,117.89,117.87,8.4856]
[1743752791809,0.05821876,117.89,117.86,0.05863257]
[1743752792203,8.54311876,117.89,117.87,8.486]
[1743752792406,0.05821876,117.89,117.87,8.486]
[1743752793210,0.05821876,117.89,117.86,0.05863257]
[1743752793611,0.05821876,117.89,117.87,8.4858]
[1743752793810,0.05821876,117.89,117.86,0.05863257]
[1743752794409,0.05821876,117.89,117.87,31.32]
[1743752794617,0.05821876,117.89,117.87,46.28052387]
[1743752794816,0.05821876,117.89,117.88,8.4855]
[1743752795212,0.05821876,117.89,117.86,0.05863257]
[1743752795513,0.05821876,117.89,117.87,8.4858]
[1743752796105,8.54301876,117.89,117.87,8.4862]
[1743752796414,31.37821876,117.89,117.86,0.05863257]
[1743752797417,8.4859,117.88,117.86,0.05863257]
[1743752797615,31.37821876,117.89,117.86,8.54523257]
[1743752798813,39.86341876,117.89,117.86,0.05863257]
[1743752799017,39.86341876,117.89,117.87,8.4862]
[1743752799215,0.05821876,117.89,117.86,0.05863257]
[1743752799417,31.38,117.88,117.86,0.05863257]
[1743752799715,2.259,117.87,117.8,48.55112387]
[1743752799918,2.259,117.87,117.8,17.17112387]
[1743752800115,8.4877,117.85,117.82,8.4894]
[1743752800718,8.54861155,117.85,117.82,8.54993369]
[1743752801015,0.06091155,117.85,117.82,8.54993369]
[1743752801418,8.54891155,117.85,117.83,8.4891]
[1743752801720,8.54891155,117.85,117.82,0.06053369]
[1743752802115,8.54891155,117.85,117.82,8.54993369]